bitfinex/quotes_BTCUSD_20241020
["timestamp","ask_amount","ask_price","bid_price","bid_amount"]
[1729442862350,0.63719167,68550.0,68534.0,0.21846622]
[1729442862351,0.24591,68535.0,68534.0,0.21846622]
[1729442862572,0.39486915,68535.0,68534.0,0.21846622]
[1729442862835,0.245912,68534.0,68533.0,0.0984]
[1729442863049,0.39487115,68534.0,68533.0,0.0984]
[1729442863709,0.39706054,68534.0,68533.0,0.0984]
[1729442867553,0.291834,68532.0,68529.0,0.0948]
[1729442867800,0.145921,68530.0,68529.0,0.0948]
[1729442868104,0.29488015,68530.0,68529.0,0.0948]
[1729442868786,0.14895915,68530.0,68529.0,0.0948]
[1729442869034,0.14895915,68530.0,68529.0,0.1778]
[1729442872183,0.39401639,68534.0,68531.0,0.1778]
[1729442872184,0.00218939,68534.0,68531.0,0.1778]
[1729442872401,0.14895915,68533.0,68531.0,0.1778]
[1729442872626,0.00218939,68534.0,68533.0,0.32469615]
[1729442873107,0.00218939,68534.0,68533.0,0.32969615]
[1729442877608,0.00218939,68534.0,68533.0,0.18378115]
[1729442878515,0.00218939,68534.0,68533.0,0.32969615]
[1729442880462,0.00218939,68534.0,68533.0,0.34716365]
[1729442881309,0.00218939,68534.0,68533.0,0.32969615]
[1729442881484,0.00218939,68534.0,68533.0,0.34716379]
[1729442886733,0.21846622,68542.0,68534.0,0.150912]
[1729442886734,0.36436222,68542.0,68534.0,0.150912]
[1729442886970,0.145898,68541.0,68539.0,0.00098115]
[1729442887192,0.145899,68541.0,68536.0,0.01844879]
[1729442887435,0.14895915,68542.0,68537.0,0.00098115]
[1729442887667,0.29485515,68542.0,68538.0,0.00098115]
[1729442887892,0.14895915,68542.0,68540.0,0.00098115]
[1729442889264,0.14895915,68541.0,68539.0,0.00098115]
[1729442893493,0.14895915,68541.0,68536.0,0.00098115]
[1729442893729,0.00218907,68538.0,68536.0,0.00098115]
[1729442893948,0.14895915,68537.0,68536.0,0.00098115]
[1729442894604,0.14895915,68537.0,68535.0,0.00098115]
[1729442898524,0.14895915,68537.0,68535.0,0.14689115]
[1729442898733,0.14895915,68537.0,68535.0,0.00098115]
[1729442899465,0.14895915,68537.0,68535.0,0.14688915]
[1729442900094,0.14895915,68537.0,68535.0,0.00098115]
[1729442900311,0.14895915,68537.0,68535.0,0.14689015]
[1729442901167,0.14895915,68537.0,68535.0,0.00098115]
[1729442901827,0.14895915,68537.0,68535.0,0.14689115]
[1729442903130,0.14895915,68537.0,68533.0,0.095627]
[1729442903344,0.00218916,68536.0,68533.0,0.095627]
[1729442903771,0.00218916,68536.0,68535.0,0.00098115]
[1729442903993,0.00218916,68536.0,68533.0,0.241541]
[1729442904838,0.00218916,68536.0,68533.0,0.095627]
[1729442905055,0.00218916,68536.0,68534.0,0.145912]
[1729442905283,0.00218916,68536.0,68533.0,0.000827]
[1729442905517,0.00218916,68536.0,68533.0,0.146741]
[1729442905725,0.00218916,68536.0,68535.0,0.00098115]
[1729442905953,0.00218916,68536.0,68533.0,0.292656]
[1729442906182,0.14895915,68537.0,68535.0,0.14689015]
[1729442906639,0.14895915,68537.0,68533.0,0.00180815]
[1729442906864,0.14895915,68537.0,68535.0,0.14689015]
[1729442907519,0.14895915,68537.0,68535.0,0.00098115]
[1729442907733,0.14895915,68537.0,68535.0,0.14689115]
[1729442908180,0.14895915,68537.0,68535.0,0.00098115]
[1729442908584,0.14895915,68537.0,68535.0,0.14689115]
[1729442909201,0.14895915,68537.0,68536.0,0.145908]
[1729442909431,0.14895915,68537.0,68533.0,0.000827]
[1729442909639,0.00218912,68534.0,68533.0,0.000827]
[1729442910057,0.00218912,68534.0,68533.0,0.00180815]
[1729442910897,0.00218912,68534.0,68533.0,0.14772315]
[1729442911316,0.00218912,68534.0,68533.0,0.146742]
[1729442911751,0.00218912,68534.0,68533.0,0.14772315]
[1729442913468,0.00218912,68534.0,68533.0,0.158665]
[1729442915031,0.00218912,68534.0,68533.0,0.01176885]
[1729442915246,0.00218912,68534.0,68533.0,0.01176894]
[1729442915692,0.15114827,68534.0,68533.0,0.01176894]
[1729442917044,0.17398336,68534.0,68533.0,0.01176894]
[1729442918837,0.17398336,68534.0,68533.0,0.01176644]
[1729442926220,0.17398336,68534.0,68533.0,0.0117647]
[1729442927372,0.02502421,68534.0,68533.0,0.15866085]
[1729442927588,0.00218912,68534.0,68533.0,0.15866085]
[1729442929820,0.00218912,68534.0,68533.0,0.15866176]
[1729442931819,0.00218912,68534.0,68533.0,0.01274676]
[1729442934009,0.00218912,68534.0,68533.0,0.01274854]
[1729442935379,0.31461632,68545.0,68539.0,0.14688315]
[1729442935380,0.12283432,68545.0,68539.0,0.14688315]
[1729442935615,0.1,68543.0,68540.0,0.25584039]
[1729442935846,0.24895915,68542.0,68541.0,0.01094039]
[1729442936229,0.02283432,68545.0,68542.0,0.00098115]
[1729442936449,0.02283432,68545.0,68544.0,0.00098115]
[1729442936771,0.1,68546.0,68544.0,0.01192154]
[1729442936993,0.1,68546.0,68545.0,0.01094039]
[1729442936994,0.24895915,68546.0,68545.0,0.01094039]
[1729442937753,0.001654,68547.0,68546.0,0.00098115]
[1729442937981,0.001654,68547.0,68546.0,0.25680854]
[1729442938905,0.001654,68547.0,68546.0,0.11092154]
[1729442942287,0.09755991,68547.0,68546.0,0.11092154]
[1729442942997,0.09755991,68547.0,68546.0,0.11090418]
[1729442943670,0.001654,68547.0,68546.0,0.11090418]
[1729442946073,0.001654,68547.0,68546.0,0.25679118]
[1729442947011,0.001654,68547.0,68546.0,0.26179118]
[1729442947225,0.001654,68547.0,68546.0,0.34079118]
[1729442947638,0.001654,68547.0,68546.0,0.35079118]
[1729442949955,0.001654,68547.0,68546.0,0.33986815]
[1729442950463,0.001654,68547.0,68546.0,0.35077349]
[1729442951558,0.001654,68547.0,68546.0,0.35277349]
[1729442951772,0.001654,68547.0,68546.0,0.56723301]
[1729442952015,0.001654,68547.0,68546.0,0.61087716]
[1729442952240,0.001654,68547.0,68546.0,0.61078096]
[1729442952662,0.001654,68547.0,68546.0,0.52354333]
[1729442953117,0.001654,68547.0,68546.0,0.61078096]
[1729442953593,0.001654,68547.0,68546.0,0.54097442]
[1729442954504,0.001654,68547.0,68546.0,0.60633979]
[1729442955433,0.001654,68547.0,68546.0,0.51916373]
[1729442955660,0.001654,68547.0,68546.0,0.54097442]
[1729442956287,0.001654,68547.0,68546.0,0.51916373]
[1729442956496,0.001654,68547.0,68546.0,0.56271991]
[1729442957590,0.001654,68547.0,68546.0,0.56269436]
[1729442958453,0.001654,68547.0,68546.0,0.51913818]
[1729442961609,0.001654,68547.0,68546.0,0.54174278]
[1729442961828,0.001654,68547.0,68546.0,0.51996518]
[1729442962052,0.001654,68547.0,68546.0,0.54174278]
[1729442962277,0.001654,68547.0,68546.0,0.51996518]
[1729442962499,0.001654,68547.0,68546.0,0.54174278]
[1729442962984,0.001654,68547.0,68546.0,0.51996518]
[1729442963217,0.001654,68547.0,68546.0,0.54174278]
[1729442964850,0.001654,68547.0,68546.0,0.5417761]
[1729442968820,0.001654,68547.0,68546.0,0.54181783]
[1729442972560,0.001654,68547.0,68546.0,0.58533425]
[1729442972795,0.001654,68547.0,68546.0,0.63077296]
[1729442973590,0.001654,68547.0,68546.0,0.58725654]
[1729442974693,0.001654,68547.0,68546.0,0.64562554]
[1729442975688,0.001654,68547.0,68546.0,0.71090018]
[1729442976305,0.001654,68547.0,68546.0,0.64562554]
[1729442976789,0.001654,68547.0,68546.0,0.71090018]
[1729442977206,0.00218814,68561.0,68555.0,0.002]
[1729442977409,0.00218814,68561.0,68560.0,0.15183815]
[1729442977619,0.00218814,68561.0,68560.0,0.20200168]
[1729442978524,0.00218814,68561.0,68560.0,0.21657334]
[1729442978742,0.00218814,68561.0,68560.0,0.20200168]
[1729442979657,0.00218814,68561.0,68560.0,0.21657334]
[1729442980285,0.00218814,68561.0,68560.0,0.15183815]
[1729442980501,0.00218814,68561.0,68560.0,0.2167184]
[1729442981363,0.00218814,68561.0,68560.0,0.20213857]
[1729442983958,0.17548814,68561.0,68560.0,0.05628157]
[1729442984184,0.17548814,68561.0,68560.0,0.00598115]
[1729442984397,0.17548814,68561.0,68560.0,0.05630758]
[1729442985444,0.17714214,68561.0,68560.0,0.05630758]
[1729442985646,0.17714214,68561.0,68560.0,0.20216458]
[1729442986100,0.174954,68561.0,68560.0,0.20216458]
[1729442986886,0.17714233,68561.0,68560.0,0.20216458]
[1729442994369,0.174954,68561.0,68560.0,0.20216458]
[1729442995965,0.174954,68561.0,68560.0,0.20213198]
[1729442999955,0.174954,68561.0,68560.0,0.20213119]
[1729443000861,0.174954,68561.0,68560.0,0.18026465]
[1729443001985,0.174954,68561.0,68560.0,0.15183815]
[1729443002195,0.174954,68561.0,68560.0,0.18026447]
[1729443002898,0.42391315,68561.0,68560.0,0.02842632]
[1729443003131,0.42391315,68561.0,68560.0,0.0109332]
[1729443004060,0.56976815,68561.0,68560.0,0.0109332]
[1729443005617,0.1,68560.0,68555.0,0.145866]
[1729443005838,0.14895915,68559.0,68556.0,0.01748531]
[1729443006060,0.14895915,68559.0,68557.0,0.02841375]
[1729443006299,0.14895915,68559.0,68558.0,0.01092844]
[1729443007841,0.14895915,68559.0,68558.0,0.17427128]
[1729443008955,0.076654,68561.0,68559.0,0.00098115]
[1729443009170,0.076654,68561.0,68560.0,0.01092844]
[1729443009312,0.076654,68561.0,68560.0,0.15678544]
[1729443010146,0.076654,68561.0,68560.0,0.16431888]
[1729443010588,0.001654,68561.0,68560.0,0.19272511]
[1729443010794,0.001654,68561.0,68560.0,0.17524438]
[1729443011631,0.02448076,68561.0,68560.0,0.17524438]
[1729443012081,0.02448076,68561.0,68560.0,0.02938738]
[1729443013664,0.02448076,68561.0,68560.0,0.01191032]
[1729443013870,0.02448076,68561.0,68560.0,0.029397]
[1729443014554,0.02448076,68561.0,68560.0,0.175254]
[1729443014795,0.02448076,68561.0,68560.0,0.029397]
[1729443015521,0.02448076,68561.0,68560.0,0.175254]
[1729443015756,0.02448076,68561.0,68560.0,0.029397]
[1729443017191,0.02448076,68561.0,68560.0,0.175254]
[1729443017649,0.02448076,68561.0,68560.0,0.029397]
[1729443017877,0.02448076,68561.0,68560.0,0.175254]
[1729443018557,0.001654,68561.0,68560.0,0.175254]
[1729443018794,0.001654,68561.0,68560.0,0.029397]
[1729443019012,0.001654,68561.0,68560.0,0.175254]
[1729443019611,0.001654,68561.0,68560.0,0.029397]
[1729443020900,0.001654,68561.0,68560.0,0.175254]
[1729443021123,0.001654,68561.0,68560.0,0.029397]
[1729443025262,0.001654,68561.0,68560.0,0.14683815]
[1729443025489,0.001654,68561.0,68560.0,0.17525987]
[1729443025993,0.001654,68561.0,68560.0,0.02940287]
[1729443029222,0.001654,68561.0,68560.0,0.00098115]
[1729443029448,0.001654,68561.0,68560.0,0.02940779]
[1729443032074,0.00392409,68561.0,68560.0,0.02940779]
[1729443032324,0.001654,68561.0,68560.0,0.02940779]
[1729443032802,0.00391083,68561.0,68560.0,0.02940779]
[1729443033037,0.001654,68561.0,68560.0,0.02940779]
[1729443033282,0.00384825,68561.0,68560.0,0.17527004]
[1729443037032,0.00384825,68561.0,68560.0,0.14683815]
[1729443037250,0.00384825,68561.0,68560.0,0.17527398]
[1729443039105,0.00384825,68561.0,68560.0,0.02941698]
[1729443039330,0.00384825,68561.0,68560.0,0.17527398]
[1729443042733,0.001654,68561.0,68560.0,0.17527398]
[1729443043197,0.00376996,68561.0,68560.0,0.17527398]
[1729443043415,0.001654,68561.0,68560.0,0.17527398]
[1729443043639,0.00376996,68561.0,68560.0,0.17527398]
[1729443043863,0.001654,68561.0,68560.0,0.17527398]
[1729443044086,0.00376996,68561.0,68560.0,0.17527398]
[1729443044310,0.001654,68561.0,68560.0,0.17527398]
[1729443044553,0.00376996,68561.0,68560.0,0.17527398]
[1729443044781,0.001654,68561.0,68560.0,0.17527398]
[1729443045011,0.00376996,68561.0,68560.0,0.17527398]
[1729443045262,0.001654,68561.0,68560.0,0.17527398]
[1729443045487,0.00376916,68561.0,68560.0,0.17527398]
[1729443045722,0.001654,68561.0,68560.0,0.17527398]
[1729443045960,0.00376836,68561.0,68560.0,0.17527398]
[1729443046193,0.001654,68561.0,68560.0,0.17527398]
[1729443046427,0.00376756,68561.0,68560.0,0.17527398]
[1729443046660,0.001654,68561.0,68560.0,0.17527398]
[1729443046883,0.00376676,68561.0,68560.0,0.17527398]
[1729443047112,0.001654,68561.0,68560.0,0.17527398]
[1729443047346,0.00376758,68561.0,68560.0,0.17527398]
[1729443047565,0.001654,68561.0,68560.0,0.17527398]
[1729443047810,0.00376758,68561.0,68560.0,0.17527398]
[1729443048036,0.001654,68561.0,68560.0,0.17527398]
[1729443048269,0.00377379,68561.0,68560.0,0.17527398]
[1729443048497,0.001654,68561.0,68560.0,0.17527398]
[1729443048720,0.00377379,68561.0,68560.0,0.17527716]
[1729443048952,0.001654,68561.0,68560.0,0.17527716]
[1729443049199,0.00377318,68561.0,68560.0,0.17527716]
[1729443049432,0.001654,68561.0,68560.0,0.17527716]
[1729443049897,0.00377078,68561.0,68560.0,0.17527716]
[1729443050123,0.001654,68561.0,68560.0,0.17527716]
[1729443050356,0.00377078,68561.0,68560.0,0.17527716]
[1729443050573,0.001654,68561.0,68560.0,0.17527716]
[1729443050796,0.00377078,68561.0,68560.0,0.17527716]
[1729443051019,0.001654,68561.0,68560.0,0.17527716]
[1729443051276,0.00377078,68561.0,68560.0,0.17527716]
[1729443056659,0.00377078,68561.0,68560.0,0.17527731]
[1729443059876,0.00377078,68561.0,68560.0,0.02942031]
[1729443060099,0.33032578,68561.0,68560.0,0.02942031]
[1729443062143,0.18447078,68561.0,68560.0,0.02942031]
[1729443062572,0.18447078,68561.0,68560.0,0.02942944]
[1729443067622,0.18447078,68561.0,68560.0,0.17528644]
[1729443070212,0.18447078,68561.0,68560.0,0.14683815]
[1729443070474,0.33342993,68561.0,68560.0,0.02844809]
[1729443070684,0.33342993,68561.0,68560.0,0.02942924]
[1729443071787,0.23572993,68561.0,68560.0,0.17528624]
[1729443079021,0.2585571,68561.0,68560.0,0.17528624]
[1729443079870,0.2585571,68561.0,68560.0,0.02844809]
[1729443080076,0.2585571,68561.0,68560.0,0.02942924]
[1729443081572,0.2585571,68561.0,68560.0,0.17528624]
[1729443082446,0.2585571,68561.0,68560.0,0.17430509]
[1729443082663,0.2585571,68561.0,68560.0,0.17528624]
[1729443083518,0.2585571,68561.0,68560.0,0.1697578]
[1729443083968,0.1755571,68561.0,68560.0,0.1697578]
[1729443084422,0.1755571,68561.0,68560.0,0.16434288]
[1729443087809,0.02659795,68561.0,68560.0,0.16934288]
[1729443087932,0.02659795,68561.0,68560.0,0.26594288]
[1729443088166,0.02448117,68561.0,68560.0,0.26594288]
[1729443088407,0.02448117,68561.0,68560.0,0.35342918]
[1729443088408,0.001654,68561.0,68560.0,0.35342918]
[1729443088643,0.001654,68561.0,68560.0,0.35342185]
[1729443088853,0.001654,68561.0,68560.0,0.37529325]
[1729443089119,0.001654,68561.0,68560.0,0.35342159]
[1729443089330,0.001654,68561.0,68560.0,0.34183624]
[1729443089553,0.001654,68561.0,68560.0,0.42930215]
[1729443090455,0.001654,68561.0,68560.0,0.34183624]
[1729443091536,0.001654,68561.0,68560.0,0.40742055]
[1729443093293,0.001654,68561.0,68560.0,0.34183624]
[1729443093529,0.001654,68561.0,68560.0,0.4074146]
[1729443093759,0.001654,68561.0,68560.0,0.34183624]
[1729443095280,0.001654,68561.0,68560.0,0.34181801]
[1729443095513,0.001654,68561.0,68560.0,0.38552712]
[1729443095740,0.001654,68561.0,68560.0,0.39645154]
[1729443097292,0.001654,68561.0,68560.0,0.35274243]
[1729443098173,0.001654,68561.0,68560.0,0.41829862]
[1729443098809,0.001654,68561.0,68560.0,0.35274243]
[1729443099032,0.001654,68561.0,68560.0,0.41829471]
[1729443099249,0.001654,68561.0,68560.0,0.35274243]
[1729443099477,0.001654,68561.0,68560.0,0.41828798]
[1729443100575,0.001654,68561.0,68560.0,0.35273567]
[1729443100789,0.001654,68561.0,68560.0,0.41828798]
[1729443101859,0.001654,68561.0,68560.0,0.35273567]
[1729443102084,0.001654,68561.0,68560.0,0.41828798]
[1729443102298,0.001654,68561.0,68560.0,0.35273567]
[1729443103202,0.001654,68561.0,68560.0,0.4182777]
[1729443104472,0.001654,68561.0,68560.0,0.35273567]
[1729443104719,0.001654,68561.0,68560.0,0.4182777]
[1729443104953,0.001654,68561.0,68560.0,0.35273567]
[1729443106136,0.001654,68561.0,68560.0,0.32433815]
[1729443106340,0.001654,68561.0,68560.0,0.35273605]
[1729443106722,0.001654,68561.0,68560.0,0.41827808]
[1729443106937,0.001654,68561.0,68560.0,0.35273605]
[1729443107347,0.001654,68561.0,68560.0,0.41827808]
[1729443108182,0.001654,68561.0,68560.0,0.35273605]
[1729443109128,0.001654,68561.0,68560.0,0.35356405]
[1729443109756,0.001654,68561.0,68560.0,0.41910608]
[1729443110190,0.001654,68561.0,68560.0,0.39070818]
[1729443110397,0.001654,68561.0,68560.0,0.35357191]
[1729443111090,0.001654,68561.0,68560.0,0.41911394]
[1729443112490,0.001654,68561.0,68560.0,0.35357191]
[1729443113150,0.001654,68561.0,68560.0,0.41911394]
[1729443113588,0.001654,68561.0,68560.0,0.34321394]
[1729443113792,0.001654,68561.0,68560.0,0.27767191]
[1729443114212,0.001654,68561.0,68560.0,0.321361]
[1729443114432,0.001654,68561.0,68560.0,0.32136102]
[1729443115216,0.001654,68561.0,68560.0,0.27767191]
[1729443116429,0.001654,68561.0,68560.0,0.34321394]
[1729443117217,0.001654,68561.0,68560.0,0.34324249]
[1729443117414,0.001654,68561.0,68560.0,0.35781725]
[1729443120978,0.001654,68561.0,68560.0,0.35784753]
[1729443121820,0.001654,68561.0,68560.0,0.34325817]
[1729443122030,0.001654,68561.0,68560.0,0.35784753]
[1729443122447,0.001654,68561.0,68560.0,0.29230477]
[1729443124494,0.001654,68561.0,68560.0,0.37970308]
[1729443125348,0.001654,68561.0,68560.0,0.36511372]
[1729443126081,0.001654,68561.0,68560.0,0.28310301]
[1729443127206,0.001654,68561.0,68560.0,0.24006446]
[1729443127430,0.001654,68561.0,68560.0,0.32614112]
[1729443128445,0.001654,68561.0,68560.0,0.23874281]
[1729443130194,0.00143336,68561.0,68560.0,0.23874281]
[1729443130630,0.00143336,68561.0,68560.0,0.33056049]
[1729443131297,0.00143336,68561.0,68560.0,0.30502929]
[1729443132186,0.00143336,68561.0,68560.0,0.34806809]
[1729443132425,0.00143336,68561.0,68560.0,0.33347867]
[1729443132641,0.00143336,68561.0,68560.0,0.22415388]
[1729443132860,0.00143336,68561.0,68560.0,0.21915388]
[1729443133096,0.00143336,68561.0,68560.0,0.22415388]
[1729443133317,0.00143336,68561.0,68560.0,0.26719261]
[1729443134944,0.00143336,68561.0,68560.0,0.25260321]
[1729443136297,0.00143336,68561.0,68560.0,0.20956486]
[1729443139003,0.00143336,68561.0,68560.0,0.25260349]
[1729443140496,0.00143336,68561.0,68560.0,0.20956486]
[1729443140712,0.00143336,68561.0,68560.0,0.25260391]
[1729443143186,0.00143336,68561.0,68560.0,0.2380144]
[1729443144256,0.00143336,68561.0,68560.0,0.20956486]
[1729443144464,0.00143336,68561.0,68560.0,0.22050711]
[1729443146445,0.00143336,68561.0,68560.0,0.1636084]
[1729443147805,0.00143336,68561.0,68560.0,0.1406084]
[1729443148034,0.00143336,68561.0,68560.0,0.14060725]
[1729443159059,0.00143336,68561.0,68560.0,0.12966615]
[1729443159294,0.00143336,68561.0,68560.0,0.1406067]
[1729443169013,0.00143336,68561.0,68560.0,0.1356067]
[1729443169232,0.00124646,68561.0,68560.0,0.1356067]
[1729443170815,0.00124646,68561.0,68560.0,0.13560615]
[1729443173433,0.00124646,68561.0,68560.0,0.13560592]
[1729443177253,0.00124646,68561.0,68560.0,0.13560602]
[1729443181174,0.00124646,68561.0,68560.0,0.1465464]
[1729443181390,0.00124646,68561.0,68560.0,0.13560653]
[1729443186227,0.00124646,68561.0,68560.0,0.24500787]
[1729443186919,0.00124646,68561.0,68560.0,0.24500875]
[1729443190223,0.00124646,68561.0,68560.0,0.13560653]
[1729443194212,0.00124646,68561.0,68560.0,0.12466615]
[1729443194659,0.00124646,68561.0,68560.0,0.13560621]
[1729443196176,0.00124646,68561.0,68560.0,0.12466615]
[1729443196635,0.00124646,68561.0,68560.0,0.13560694]
[1729443198205,0.00124646,68561.0,68560.0,0.13560699]
[1729443202238,0.00124646,68561.0,68560.0,0.13560716]
[1729443204515,0.00124646,68561.0,68560.0,0.15311341]
[1729443205577,0.00124646,68561.0,68560.0,0.15311392]
[1729443213387,0.00124646,68561.0,68560.0,0.15310181]
[1729443216552,0.00124646,68561.0,68560.0,0.15310565]
[1729443227773,0.00124646,68561.0,68560.0,0.15311629]
[1729443231318,0.00124646,68561.0,68560.0,0.12466615]
[1729443231788,0.00124646,68561.0,68560.0,0.15311619]
[1729443235039,0.00124646,68561.0,68560.0,0.15311601]
[1729443235491,0.00124646,68561.0,68560.0,0.14217382]
[1729443235700,0.00124646,68561.0,68560.0,0.15311611]
[1729443238947,0.00124646,68561.0,68560.0,0.15311511]
[1729443241514,0.00124646,68561.0,68560.0,0.12466615]
[1729443241722,0.00124646,68561.0,68560.0,0.1531151]
[1729443245900,0.00124646,68561.0,68560.0,0.15311512]
[1729443253383,0.00124646,68561.0,68560.0,0.12466615]
[1729443253626,0.00124646,68561.0,68560.0,0.18156108]
[1729443256318,0.00124646,68561.0,68560.0,0.15311357]
[1729443256786,0.00124646,68561.0,68560.0,0.18156184]
[1729443257003,0.00124646,68561.0,68560.0,0.15311442]
[1729443257454,0.00124646,68561.0,68560.0,0.15311512]
[1729443257942,0.00124646,68561.0,68560.0,0.14217303]
[1729443258173,0.00124646,68561.0,68560.0,0.15311483]
[1729443261324,0.00124646,68561.0,68560.0,0.15310873]
[1729443269573,0.00124646,68561.0,68560.0,0.15310965]
[1729443276706,0.00124646,68561.0,68560.0,0.15310618]
[1729443280404,0.00124646,68561.0,68560.0,0.12466615]
[1729443280628,0.00124646,68561.0,68560.0,0.15310592]
[1729443281069,0.00124646,68561.0,68560.0,0.15310358]
[1729443284302,0.00124646,68561.0,68560.0,0.12466615]
[1729443284521,0.00124646,68561.0,68560.0,0.15310368]
[1729443292036,0.00124646,68561.0,68560.0,0.12466615]
[1729443292253,0.00124646,68561.0,68560.0,0.15310801]
[1729443301727,0.00124646,68561.0,68560.0,0.15310742]
[1729443309336,0.00124646,68561.0,68560.0,0.26249618]
[1729443309553,0.00124646,68561.0,68560.0,0.15310742]
[1729443312650,0.00124646,68561.0,68560.0,0.12466615]
[1729443312883,0.00124646,68561.0,68560.0,0.15310344]
[1729443313080,0.00124646,68561.0,68560.0,0.15310371]
[1729443324056,0.00124646,68561.0,68560.0,0.1531047]
[1729443330934,0.00124646,68561.0,68560.0,0.1531043]
[1729443334825,0.00124646,68561.0,68560.0,0.12466615]
[1729443335045,0.00124646,68561.0,68560.0,0.15310445]
[1729443337152,0.00124646,68561.0,68560.0,0.26248728]
[1729443337393,0.00124646,68561.0,68560.0,0.2624864]
[1729443337603,0.00124646,68561.0,68560.0,0.15310445]
[1729443337805,0.00124646,68561.0,68560.0,0.2624864]
[1729443338256,0.00124646,68561.0,68560.0,0.26248657]
[1729443341153,0.00124646,68561.0,68560.0,0.15310462]
[1729443342799,0.00124646,68561.0,68560.0,0.26248086]
[1729443343237,0.00124646,68561.0,68560.0,0.26247897]
[1729443345517,0.00124646,68561.0,68560.0,0.2340405]
[1729443345731,0.00124646,68561.0,68560.0,0.26247829]
[1729443346175,0.00124646,68561.0,68560.0,0.15310394]
[1729443349281,0.00124646,68561.0,68560.0,0.15310435]
[1729443353502,0.00124646,68561.0,68560.0,0.26248057]
[1729443355323,0.00124646,68561.0,68560.0,0.15310435]
[1729443355540,0.00124646,68561.0,68560.0,0.26248057]
[1729443355979,0.08383756,68566.0,68560.0,0.13962357]
[1729443356204,0.08383756,68566.0,68565.0,0.1895979]
[1729443356450,0.08383756,68566.0,68565.0,0.1742852]
[1729443357257,0.08383756,68566.0,68565.0,0.17428617]
[1729443358348,0.08383756,68566.0,68565.0,0.23991253]
[1729443358791,0.083,68567.0,68565.0,0.17428617]
[1729443359010,0.083,68567.0,68566.0,0.21803238]
[1729443361302,0.083,68567.0,68566.0,0.17428317]
[1729443362229,0.083,68567.0,68566.0,0.21803238]
[1729443363412,0.083,68567.0,68566.0,0.21803223]
[1729443365714,0.083,68567.0,68566.0,0.21886023]
[1729443365944,0.08518816,68567.0,68566.0,0.21886023]
[1729443366176,0.08684416,68567.0,68566.0,0.21886023]
[1729443367109,0.33510331,68567.0,68566.0,0.000828]
[1729443367363,0.48094531,68567.0,68566.0,0.000828]
[1729443367603,0.48094531,68567.0,68566.0,0.02926876]
[1729443367811,0.48094531,68567.0,68566.0,0.01176675]
[1729443368322,0.59462142,68567.0,68566.0,0.01176675]
[1729443368533,0.59462142,68567.0,68566.0,0.000828]
[1729443371083,0.59461069,68567.0,68566.0,0.000828]
[1729443373282,0.58094531,68567.0,68566.0,0.000828]
[1729443374617,0.62162398,68567.0,68566.0,0.000828]
[1729443376923,0.60796416,68567.0,68566.0,0.000828]
[1729443377179,0.62162086,68567.0,68566.0,0.000828]
[1729443377435,0.63362086,68567.0,68566.0,0.000828]
[1729443377937,0.72952677,68567.0,68566.0,0.000828]
[1729443378161,0.83881908,68567.0,68566.0,0.000828]
[1729443378392,0.71587007,68567.0,68566.0,0.000828]
[1729443378604,0.72951787,68567.0,68566.0,0.000828]
[1729443379579,0.83864389,68567.0,68566.0,0.000828]
[1729443380048,0.98312563,68567.0,68566.0,0.000828]
[1729443380327,0.83864434,68567.0,68566.0,0.000828]
[1729443380547,0.81679634,68567.0,68566.0,0.000828]
[1729443382612,0.72951787,68567.0,68566.0,0.000828]
[1729443383476,0.79493776,68567.0,68566.0,0.000828]
[1729443384901,0.7949245,68567.0,68566.0,0.000828]
[1729443385582,0.72951787,68567.0,68566.0,0.000828]
[1729443387287,0.97127554,68567.0,68566.0,0.000828]
[1729443387481,1.01486064,68567.0,68566.0,0.000828]
[1729443388519,1.08338474,68567.0,68566.0,0.000828]
[1729443389135,1.01486064,68567.0,68566.0,0.000828]
[1729443389350,1.01483291,68567.0,68566.0,0.000828]
[1729443389765,1.01482238,68567.0,68566.0,0.000828]
[1729443391011,1.16378153,68567.0,68566.0,0.000828]
[1729443391432,1.12020669,68567.0,68566.0,0.000828]
[1729443392057,0.97124754,68567.0,68566.0,0.000828]
[1729443395183,0.72948987,68567.0,68566.0,0.000828]
[1729443395388,0.95331864,68567.0,68566.0,0.000828]
[1729443396637,0.99646721,68567.0,68566.0,0.000828]
[1729443396860,0.99648123,68567.0,68566.0,0.000828]
[1729443397066,1.03219358,68567.0,68566.0,0.000828]
[1729443397286,1.03319358,68567.0,68566.0,0.000828]
[1729443397498,1.03419358,68567.0,68566.0,0.000828]
[1729443397709,1.03319358,68567.0,68566.0,0.000828]
[1729443397914,1.03419358,68567.0,68566.0,0.000828]
[1729443399173,0.99848123,68567.0,68566.0,0.000828]
[1729443399372,1.04204762,68567.0,68566.0,0.000828]
[1729443400447,1.0284138,68567.0,68566.0,0.000828]
[1729443400615,1.04205488,68567.0,68566.0,0.000828]
[1729443401077,1.04205479,68567.0,68566.0,0.000828]
[1729443401641,1.19101394,68567.0,68566.0,0.000828]
[1729443402264,1.04205479,68567.0,68566.0,0.000828]
[1729443402930,1.04005479,68567.0,68566.0,0.000828]
[1729443403164,0.95333983,68567.0,68566.0,0.000828]
[1729443403382,0.72951106,68567.0,68566.0,0.000828]
[1729443403605,0.72851106,68567.0,68566.0,0.000828]
[1729443403816,0.72751106,68567.0,68566.0,0.000828]
[1729443404249,0.72751998,68567.0,68566.0,0.000828]
[1729443404887,0.93774734,68567.0,68566.0,0.000828]
[1729443405507,0.83844734,68567.0,68566.0,0.000828]
[1729443408037,0.82479743,68567.0,68566.0,0.000828]
[1729443408236,0.83846538,68567.0,68566.0,0.000828]
[1729443409518,0.88207756,68567.0,68566.0,0.000828]
[1729443410393,0.90388365,68567.0,68566.0,0.000828]
[1729443410637,0.83846538,68567.0,68566.0,0.000828]
[1729443410860,0.90388365,68567.0,68566.0,0.000828]
[1729443411839,0.62823802,68567.0,68566.0,0.000828]
[1729443412314,0.70179443,68567.0,68566.0,0.000828]
[1729443412544,0.62823579,68567.0,68566.0,0.000828]
[1729443413443,0.71546015,68567.0,68566.0,0.000828]
[1729443413924,0.71555066,68567.0,68566.0,0.000828]
[1729443414382,0.62823579,68567.0,68566.0,0.000828]
[1729443415095,0.71556028,68567.0,68566.0,0.000828]
[1729443415533,0.61457007,68567.0,68566.0,0.000828]
[1729443415782,0.71556898,68567.0,68566.0,0.000828]
[1729443415998,0.62823529,68567.0,68566.0,0.000828]
[1729443416432,0.62823529,68567.0,68560.0,0.000828]
[1729443416433,0.27287985,68558.0,68557.0,0.08647417]
[1729443416658,0.43550422,68558.0,68557.0,0.08647417]
[1729443417107,0.45833452,68558.0,68557.0,0.08647417]
[1729443419475,0.4446693,68558.0,68557.0,0.08647417]
[1729443419683,0.45833493,68558.0,68557.0,0.08647417]